[Event "*** Titled Tuesday Blitz"]
[Site "Chess.com"]
[Date "2020.04.28"]
[Round "8"]
[White "GMartin_Petrov"]
[Black "LucaBrasi1968"]
[Result "1-0"]
[WhiteElo "2668"]
[BlackElo "2466"]
[TimeControl "180+1"]
[EndTime "11:36:20 PDT"]
[Termination "GMartin_Petrov won by resignation"]

1. c4 {[%clk 0:03:00.9]} 1... c6 {[%clk 0:02:58.3]} 2. Nf3 {[%clk 0:03:00]} 2...
d5 {[%clk 0:02:58.5]} 3. e3 {[%clk 0:02:59.6]} 3... Nf6 {[%clk 0:02:58.2]} 4. b3
{[%clk 0:02:58.3]} 4... Bf5 {[%clk 0:02:57.3]} 5. Bb2 {[%clk 0:02:58.2]} 5... e6
{[%clk 0:02:57.4]} 6. Be2 {[%clk 0:02:55.4]} 6... h6 {[%clk 0:02:56.3]} 7. O-O
{[%clk 0:02:53.4]} 7... Bd6 {[%clk 0:02:56]} 8. d3 {[%clk 0:02:47.4]} 8... O-O
{[%clk 0:02:54.9]} 9. Nbd2 {[%clk 0:02:46.1]} 9... Qe7 {[%clk 0:02:44.5]} 10.
Re1 {[%clk 0:02:32.3]} 10... Bh7 {[%clk 0:02:41.9]} 11. Bf1 {[%clk 0:02:24.7]}
11... Nbd7 {[%clk 0:02:41.1]} 12. cxd5 {[%clk 0:02:20.1]} 12... cxd5 {[%clk
0:02:16.8]} 13. e4 {[%clk 0:02:19.1]} 13... dxe4 {[%clk 0:02:13.5]} 14. dxe4
{[%clk 0:02:18.2]} 14... Bc5 {[%clk 0:02:05]} 15. h3 {[%clk 0:02:13.9]} 15...
Rfd8 {[%clk 0:02:02.4]} 16. Rc1 {[%clk 0:02:09.5]} 16... Rac8 {[%clk 0:02:00.7]}
17. Qe2 {[%clk 0:02:04.8]} 17... Bb4 {[%clk 0:01:52.8]} 18. Qb5 {[%clk
0:01:58.9]} 18... Nb8 {[%clk 0:01:24.9]} 19. Rxc8 {[%clk 0:01:37.7]} 19... Rxc8
{[%clk 0:01:24.4]} 20. Rc1 {[%clk 0:01:38]} 20... Rxc1 {[%clk 0:01:17.2]} 21.
Bxc1 {[%clk 0:01:38.9]} 21... Nc6 {[%clk 0:01:16.4]} 22. Qd3 {[%clk 0:01:12.7]}
22... Qd6 {[%clk 0:01:06.1]} 23. Qc2 {[%clk 0:01:07.7]} 23... Qd8 {[%clk
0:00:48.3]} 24. Bb2 {[%clk 0:01:05.8]} 24... Be7 {[%clk 0:00:24.9]} 25. Qc4
{[%clk 0:01:01.5]} 25... Bg6 {[%clk 0:00:22.6]} 26. Qa4 {[%clk 0:00:56.2]} 26...
a6 {[%clk 0:00:21.6]} 27. Bxa6 {[%clk 0:00:54.8]} 27... bxa6 {[%clk 0:00:21.5]}
28. Qxc6 {[%clk 0:00:54.3]} 28... Qa5 {[%clk 0:00:19.4]} 29. a4 {[%clk
0:00:46.1]} 29... Qb4 {[%clk 0:00:18.4]} 30. Bc3 {[%clk 0:00:41.5]} 30... Qa3
{[%clk 0:00:17.7]} 31. Qc8+ {[%clk 0:00:33.9]} 31... Kh7 {[%clk 0:00:17.2]} 32.
Bd4 {[%clk 0:00:27]} 32... Qa2 {[%clk 0:00:14.4]} 33. Qxa6 {[%clk 0:00:22.8]}
33... Nxe4 {[%clk 0:00:14.5]} 34. Nxe4 {[%clk 0:00:20.5]} 34... Bxe4 {[%clk
0:00:14.7]} 35. Qc4 {[%clk 0:00:14.4]} 35... Bd5 {[%clk 0:00:14]} 36. Qc3 {[%clk
0:00:13.7]} 36... Qxb3 {[%clk 0:00:12.5]} 37. Bxg7 {[%clk 0:00:10.4]} 37... Qxc3
{[%clk 0:00:11.5]} 38. Bxc3 {[%clk 0:00:09.7]} 38... Bc5 {[%clk 0:00:10.7]} 39.
Ne5 {[%clk 0:00:08.9]} 39... f6 {[%clk 0:00:10.1]} 40. Nd7 {[%clk 0:00:08.9]}
40... Bd6 {[%clk 0:00:10.3]} 41. Nxf6+ {[%clk 0:00:08.7]} 41... Kg6 {[%clk
0:00:11.2]} 42. Nxd5 {[%clk 0:00:09.1]} 42... exd5 {[%clk 0:00:11.9]} 43. Kf1
{[%clk 0:00:09.4]} 43... Kf5 {[%clk 0:00:12.5]} 44. Ke2 {[%clk 0:00:09.5]} 44...
Ke4 {[%clk 0:00:13.4]} 45. f3+ {[%clk 0:00:09.4]} 45... Kf5 {[%clk 0:00:13.9]}
46. Bd2 {[%clk 0:00:07.8]} 46... h5 {[%clk 0:00:13.3]} 47. g4+ {[%clk
0:00:07.9]} 47... hxg4 {[%clk 0:00:13.9]} 48. hxg4+ {[%clk 0:00:07.7]} 48... Ke6
{[%clk 0:00:14]} 49. Kd3 {[%clk 0:00:08.4]} 49... Bc5 {[%clk 0:00:14]} 50. a5
{[%clk 0:00:08.5]} 50... Kd6 {[%clk 0:00:13.8]} 51. a6 {[%clk 0:00:08.7]} 51...
Kc6 {[%clk 0:00:14.3]} 52. g5 {[%clk 0:00:08.7]} 52... Kb6 {[%clk 0:00:14.4]}
53. g6 {[%clk 0:00:09]} 53... Bf8 {[%clk 0:00:12.9]} 54. Bc3 {[%clk 0:00:09]}
54... Kxa6 {[%clk 0:00:13.1]} 55. g7 {[%clk 0:00:09.2]} 55... Bxg7 {[%clk
0:00:13.6]} 56. Bxg7 {[%clk 0:00:09.4]} 56... Kb5 {[%clk 0:00:14.1]} 57. Kd4
{[%clk 0:00:09.7]} 1-0

[Event "*** Titled Tuesday Blitz"]
[Site "Chess.com"]
[Date "2020.04.28"]
[Round "8"]
[White "Petrosyan_Tigran"]
[Black "WinningButNotReally"]
[Result "1-0"]
[WhiteElo "2573"]
[BlackElo "2422"]
[TimeControl "180+1"]
[EndTime "11:36:21 PDT"]
[Termination "Petrosyan_Tigran won by resignation"]

1. Nf3 {[%clk 0:03:00.9]} 1... Nf6 {[%clk 0:02:59.8]} 2. c4 {[%clk 0:03:00.3]}
2... g6 {[%clk 0:02:59.9]} 3. Nc3 {[%clk 0:02:59.4]} 3... d5 {[%clk 0:03:00.2]}
4. cxd5 {[%clk 0:02:59.4]} 4... Nxd5 {[%clk 0:03:01.1]} 5. Qb3 {[%clk 0:03:00]}
5... Nb6 {[%clk 0:03:00.6]} 6. d4 {[%clk 0:02:59.4]} 6... Bg7 {[%clk 0:03:00.4]}
7. Bf4 {[%clk 0:02:59.4]} 7... c6 {[%clk 0:02:56.2]} 8. e3 {[%clk 0:02:58.6]}
8... Be6 {[%clk 0:02:49.5]} 9. Qa3 {[%clk 0:02:56]} 9... O-O {[%clk 0:02:31.2]}
10. Be2 {[%clk 0:02:53]} 10... h6 {[%clk 0:02:27.7]} 11. O-O {[%clk 0:02:44.6]}
11... Nc4 {[%clk 0:02:09]} 12. Qa4 {[%clk 0:02:38.1]} 12... b5 {[%clk
0:02:05.2]} 13. Qc2 {[%clk 0:02:36.5]} 13... Nd7 {[%clk 0:01:58.7]} 14. Rfd1
{[%clk 0:02:34]} 14... Ndb6 {[%clk 0:01:50.5]} 15. b3 {[%clk 0:02:33.1]} 15...
Nd6 {[%clk 0:01:45.4]} 16. Rac1 {[%clk 0:02:31.6]} 16... Nd5 {[%clk 0:01:32.2]}
17. Nxd5 {[%clk 0:02:26.3]} 17... cxd5 {[%clk 0:01:01.9]} 18. Bxd6 {[%clk
0:02:23.8]} 18... Qxd6 {[%clk 0:01:01.9]} 19. Bxb5 {[%clk 0:02:22.8]} 19... Rfc8
{[%clk 0:00:56.7]} 20. Qb2 {[%clk 0:02:20.7]} 20... Rab8 {[%clk 0:00:53.6]} 21.
Be2 {[%clk 0:02:18.8]} 21... a5 {[%clk 0:00:51.1]} 22. Rxc8+ {[%clk 0:02:18]}
22... Bxc8 {[%clk 0:00:49.8]} 23. Qc3 {[%clk 0:02:09.8]} 23... a4 {[%clk
0:00:40.7]} 24. bxa4 {[%clk 0:02:05.5]} 24... Ba6 {[%clk 0:00:38.2]} 25. Bxa6
{[%clk 0:01:57.3]} 25... Qxa6 {[%clk 0:00:39.1]} 26. Qc7 {[%clk 0:01:35.1]}
26... Qb7 {[%clk 0:00:32]} 27. Qxb7 {[%clk 0:01:28.9]} 27... Rxb7 {[%clk
0:00:32.9]} 28. Kf1 {[%clk 0:01:26.5]} 28... Rb2 {[%clk 0:00:29.2]} 29. Rd2
{[%clk 0:01:26.1]} 29... Rb4 {[%clk 0:00:26.4]} 30. Rc2 {[%clk 0:01:25.3]} 30...
Rxa4 {[%clk 0:00:25.6]} 31. Ke2 {[%clk 0:01:25.7]} 31... e6 {[%clk 0:00:25.4]}
32. Nd2 {[%clk 0:01:25.5]} 32... Bf8 {[%clk 0:00:23.8]} 33. Nb3 {[%clk
0:01:23.2]} 33... Kg7 {[%clk 0:00:21.7]} 34. Nc5 {[%clk 0:01:22.7]} 34... Ra7
{[%clk 0:00:21.4]} 35. Kd2 {[%clk 0:01:08.2]} 35... Kf6 {[%clk 0:00:20.1]} 36.
Kc1 {[%clk 0:01:00.3]} 36... Bd6 {[%clk 0:00:16.1]} 37. g3 {[%clk 0:00:55]}
37... e5 {[%clk 0:00:15.4]} 38. dxe5+ {[%clk 0:00:53.7]} 38... Kxe5 {[%clk
0:00:15]} 39. Nb3 {[%clk 0:00:48.4]} 39... Ba3+ {[%clk 0:00:14.4]} 40. Kd2
{[%clk 0:00:47.4]} 40... Bb4+ {[%clk 0:00:14.7]} 41. Ke2 {[%clk 0:00:47.6]}
41... f5 {[%clk 0:00:12.7]} 42. Nd4 {[%clk 0:00:47.6]} 42... Rb7 {[%clk
0:00:07.7]} 43. Nc6+ {[%clk 0:00:46.2]} 43... Kd6 {[%clk 0:00:07.5]} 44. Nxb4
{[%clk 0:00:45.1]} 44... Rxb4 {[%clk 0:00:07.5]} 45. a3 {[%clk 0:00:45.8]} 45...
Ra4 {[%clk 0:00:07.8]} 46. Ra2 {[%clk 0:00:45.8]} 46... Ke5 {[%clk 0:00:08]} 47.
Kd3 {[%clk 0:00:45.7]} 47... d4 {[%clk 0:00:08.4]} 48. exd4+ {[%clk 0:00:45.3]}
48... Rxd4+ {[%clk 0:00:09.3]} 49. Kc3 {[%clk 0:00:45.8]} 49... Ra4 {[%clk
0:00:09.9]} 50. Kb3 {[%clk 0:00:45.7]} 50... Ra8 {[%clk 0:00:09.5]} 51. f3
{[%clk 0:00:45.6]} 51... Kf6 {[%clk 0:00:10.4]} 52. a4 {[%clk 0:00:45.5]} 52...
Rb8+ {[%clk 0:00:09.4]} 53. Kc4 {[%clk 0:00:45]} 53... Rc8+ {[%clk 0:00:07.2]}
54. Kd5 {[%clk 0:00:45]} 54... Rd8+ {[%clk 0:00:07.1]} 55. Kc6 {[%clk
0:00:45.3]} 55... Rc8+ {[%clk 0:00:07.6]} 56. Kd7 {[%clk 0:00:45.4]} 56... Rc1
{[%clk 0:00:08.5]} 57. a5 {[%clk 0:00:45.1]} 57... Rd1+ {[%clk 0:00:08.9]} 58.
Kc6 {[%clk 0:00:45.4]} 58... Rc1+ {[%clk 0:00:09.2]} 59. Kd5 {[%clk 0:00:45.3]}
59... Rd1+ {[%clk 0:00:09.4]} 60. Kc4 {[%clk 0:00:45.4]} 60... Rc1+ {[%clk
0:00:09.7]} 61. Kb4 {[%clk 0:00:42.7]} 61... Rb1+ {[%clk 0:00:09.7]} 62. Ka4
{[%clk 0:00:42.9]} 62... Ke6 {[%clk 0:00:09]} 63. a6 {[%clk 0:00:43.1]} 63...
Rb8 {[%clk 0:00:08.1]} 64. a7 {[%clk 0:00:43]} 64... Ra8 {[%clk 0:00:08.3]} 65.
Kb5 {[%clk 0:00:43.4]} 65... Kd7 {[%clk 0:00:08.7]} 66. Kb6 {[%clk 0:00:43.7]}
66... Kc8 {[%clk 0:00:08.7]} 67. Rc2+ {[%clk 0:00:42.6]} 67... Kd7 {[%clk
0:00:09.6]} 68. Kb7 {[%clk 0:00:43]} 68... Rxa7+ {[%clk 0:00:09.7]} 69. Kxa7
{[%clk 0:00:43.9]} 1-0

[Event "*** Titled Tuesday Blitz"]
[Site "Chess.com"]
[Date "2020.04.28"]
[Round "8"]
[White "ALEXJR20"]
[Black "crossingthestreet"]
[Result "1-0"]
[WhiteElo "2214"]
[BlackElo "2294"]
[TimeControl "180+1"]
[EndTime "11:36:22 PDT"]
[Termination "ALEXJR20 won by resignation"]

1. d4 {[%clk 0:03:00.9]} 1... e6 {[%clk 0:02:53.9]} 2. Nf3 {[%clk 0:02:58.1]}
2... Nf6 {[%clk 0:02:48.9]} 3. c4 {[%clk 0:02:57.9]} 3... d5 {[%clk 0:02:44.2]}
4. g3 {[%clk 0:02:53.4]} 4... Be7 {[%clk 0:02:43.6]} 5. Bg2 {[%clk 0:02:53.4]}
5... O-O {[%clk 0:02:35.7]} 6. O-O {[%clk 0:02:53.3]} 6... dxc4 {[%clk 0:02:30]}
7. Qc2 {[%clk 0:02:50.7]} 7... a6 {[%clk 0:02:29.9]} 8. a4 {[%clk 0:02:47.8]}
8... Bd7 {[%clk 0:02:29.2]} 9. Qxc4 {[%clk 0:02:47.2]} 9... Bc6 {[%clk
0:02:29.6]} 10. Nc3 {[%clk 0:02:41.7]} 10... Ne4 {[%clk 0:02:07.2]} 11. Rd1
{[%clk 0:02:17.6]} 11... Nxc3 {[%clk 0:02:01.5]} 12. bxc3 {[%clk 0:02:15.2]}
12... Nd7 {[%clk 0:01:59.2]} 13. Bf4 {[%clk 0:02:02.2]} 13... Rc8 {[%clk
0:01:45.9]} 14. Qd3 {[%clk 0:01:49.4]} 14... Nf6 {[%clk 0:01:29.4]} 15. Ne5
{[%clk 0:01:45.1]} 15... Bxg2 {[%clk 0:01:25.4]} 16. Kxg2 {[%clk 0:01:46]} 16...
c6 {[%clk 0:01:24.4]} 17. e4 {[%clk 0:01:44.1]} 17... Bd6 {[%clk 0:01:19.6]} 18.
a5 {[%clk 0:01:40.3]} 18... Bc7 {[%clk 0:01:05.2]} 19. Nc4 {[%clk 0:01:36.2]}
19... Bxf4 {[%clk 0:01:02.6]} 20. gxf4 {[%clk 0:01:37.1]} 20... c5 {[%clk
0:00:55.7]} 21. Rab1 {[%clk 0:01:22.2]} 21... cxd4 {[%clk 0:00:45.9]} 22. cxd4
{[%clk 0:01:18.8]} 22... Qc7 {[%clk 0:00:45.8]} 23. Nb6 {[%clk 0:01:05.4]} 23...
Rcd8 {[%clk 0:00:44.1]} 24. Rbc1 {[%clk 0:00:59.9]} 24... Qxf4 {[%clk
0:00:43.2]} 25. f3 {[%clk 0:00:51.6]} 25... Qh4 {[%clk 0:00:37.5]} 26. d5 {[%clk
0:00:43.7]} 26... Nh5 {[%clk 0:00:32]} 27. Qe3 {[%clk 0:00:36.6]} 27... Nf4+
{[%clk 0:00:30.7]} 28. Kh1 {[%clk 0:00:33.3]} 28... exd5 {[%clk 0:00:28.7]} 29.
Nxd5 {[%clk 0:00:25.4]} 29... Nxd5 {[%clk 0:00:28.4]} 30. Rxd5 {[%clk 0:00:26]}
30... Rde8 {[%clk 0:00:23.6]} 31. Rg1 {[%clk 0:00:23.1]} 31... Kh8 {[%clk
0:00:18.1]} 32. Qd4 {[%clk 0:00:22.5]} 32... f6 {[%clk 0:00:16.3]} 33. Rd7
{[%clk 0:00:21.4]} 33... Rg8 {[%clk 0:00:15.3]} 34. Rxb7 {[%clk 0:00:17.1]}
34... Rd8 {[%clk 0:00:13.7]} 35. Rbxg7 {[%clk 0:00:13.3]} 35... Rdf8 {[%clk
0:00:10.8]} 36. Rxg8+ {[%clk 0:00:12.9]} 36... Rxg8 {[%clk 0:00:11.7]} 37. Rxg8+
{[%clk 0:00:12.6]} 37... Kxg8 {[%clk 0:00:12.6]} 38. Qd8+ {[%clk 0:00:12.2]}
38... Kg7 {[%clk 0:00:12.4]} 39. Qc7+ {[%clk 0:00:11.4]} 39... Kg6 {[%clk
0:00:12.1]} 40. Qg3+ {[%clk 0:00:11.8]} 40... Qxg3 {[%clk 0:00:12.4]} 41. hxg3
{[%clk 0:00:12.7]} 41... f5 {[%clk 0:00:13]} 42. Kh2 {[%clk 0:00:12.7]} 42...
fxe4 {[%clk 0:00:12.7]} 43. fxe4 {[%clk 0:00:13.6]} 43... Kg5 {[%clk 0:00:13.2]}
44. Kg2 {[%clk 0:00:13.4]} 44... Kg4 {[%clk 0:00:13.6]} 45. Kf2 {[%clk
0:00:13.7]} 45... h6 {[%clk 0:00:13.9]} 46. Kg2 {[%clk 0:00:14.1]} 46... h5
{[%clk 0:00:14.4]} 47. Kf2 {[%clk 0:00:14.3]} 47... Kg5 {[%clk 0:00:14.8]} 48.
Kf3 {[%clk 0:00:14.4]} 48... Kf6 {[%clk 0:00:15.5]} 49. Kf4 {[%clk 0:00:14.7]}
49... Ke6 {[%clk 0:00:15.4]} 50. Kg5 {[%clk 0:00:15.1]} 50... Ke5 {[%clk
0:00:16]} 51. Kxh5 {[%clk 0:00:15.3]} 51... Kxe4 {[%clk 0:00:16.5]} 52. g4
{[%clk 0:00:15.1]} 52... Kd5 {[%clk 0:00:16.5]} 53. g5 {[%clk 0:00:15.6]} 53...
Kc5 {[%clk 0:00:17.1]} 54. g6 {[%clk 0:00:16.1]} 54... Kb5 {[%clk 0:00:18]} 55.
g7 {[%clk 0:00:16.8]} 55... Kxa5 {[%clk 0:00:18.9]} 56. g8=Q {[%clk 0:00:17.3]}
56... Kb4 {[%clk 0:00:19.8]} 57. Qa2 {[%clk 0:00:17.2]} 57... a5 {[%clk
0:00:19.8]} 58. Kg5 {[%clk 0:00:18.1]} 58... a4 {[%clk 0:00:20.4]} 59. Kf5
{[%clk 0:00:19]} 59... a3 {[%clk 0:00:20.3]} 60. Ke4 {[%clk 0:00:19.9]} 60...
Ka4 {[%clk 0:00:20.9]} 61. Kd4 {[%clk 0:00:20.8]} 61... Kb4 {[%clk 0:00:21.7]}
62. Kd3 {[%clk 0:00:20.6]} 62... Ka4 {[%clk 0:00:22.6]} 63. Kc3 {[%clk
0:00:21.2]} 63... Ka5 {[%clk 0:00:22.4]} 64. Qxa3+ {[%clk 0:00:21.5]} 64... Kb6
{[%clk 0:00:18.9]} 65. Qb4+ {[%clk 0:00:22.4]} 65... Kc7 {[%clk 0:00:19.4]} 66.
Qc4+ {[%clk 0:00:22.7]} 66... Kd7 {[%clk 0:00:20.3]} 67. Kd4 {[%clk 0:00:23.5]}
67... Ke7 {[%clk 0:00:20.1]} 68. Qd5 {[%clk 0:00:24.4]} 68... Kf6 {[%clk
0:00:19.3]} 69. Qe5+ {[%clk 0:00:24.6]} 69... Kg6 {[%clk 0:00:20.2]} 70. Kd5
{[%clk 0:00:25.5]} 1-0

[Event "*** Titled Tuesday Blitz"]
[Site "Chess.com"]
[Date "2020.04.28"]
[Round "8"]
[White "Tesla37"]
[Black "Jumbo"]
[Result "0-1"]
[WhiteElo "2873"]
[BlackElo "2773"]
[TimeControl "180+1"]
[EndTime "11:36:23 PDT"]
[Termination "Jumbo won by resignation"]

1. e4 {[%clk 0:03:00.9]} 1... e5 {[%clk 0:02:59.2]} 2. Nf3 {[%clk 0:03:00.3]}
2... Nc6 {[%clk 0:02:59.2]} 3. Bb5 {[%clk 0:02:59.6]} 3... a6 {[%clk 0:02:58]}
4. Ba4 {[%clk 0:02:59.7]} 4... d6 {[%clk 0:02:57.5]} 5. c3 {[%clk 0:02:58.8]}
5... Bd7 {[%clk 0:02:57.6]} 6. d4 {[%clk 0:02:57.3]} 6... g6 {[%clk 0:02:57.5]}
7. Bg5 {[%clk 0:02:53]} 7... f6 {[%clk 0:02:57.1]} 8. Be3 {[%clk 0:02:52.5]}
8... Bg7 {[%clk 0:02:44.4]} 9. O-O {[%clk 0:02:43.9]} 9... Nh6 {[%clk
0:02:37.4]} 10. c4 {[%clk 0:02:42.9]} 10... O-O {[%clk 0:02:32.1]} 11. Nc3
{[%clk 0:02:34.2]} 11... Nf7 {[%clk 0:02:10.4]} 12. Qd2 {[%clk 0:02:22.9]} 12...
Bg4 {[%clk 0:01:54.9]} 13. Bxc6 {[%clk 0:02:20.6]} 13... bxc6 {[%clk 0:01:55.8]}
14. Ne1 {[%clk 0:02:18]} 14... exd4 {[%clk 0:01:43.9]} 15. Bxd4 {[%clk
0:02:15.6]} 15... c5 {[%clk 0:01:43.9]} 16. Be3 {[%clk 0:02:15.5]} 16... Be6
{[%clk 0:01:39.6]} 17. b3 {[%clk 0:02:09.3]} 17... f5 {[%clk 0:01:38.3]} 18.
exf5 {[%clk 0:01:59.7]} 18... Bxf5 {[%clk 0:01:39.2]} 19. Rd1 {[%clk 0:01:58.1]}
19... Ne5 {[%clk 0:01:36.4]} 20. f3 {[%clk 0:01:53.4]} 20... Kh8 {[%clk
0:01:35.4]} 21. Bh6 {[%clk 0:01:46.5]} 21... Qd7 {[%clk 0:01:20.7]} 22. Bxg7+
{[%clk 0:01:44.2]} 22... Qxg7 {[%clk 0:01:21.6]} 23. Nc2 {[%clk 0:01:43.9]}
23... Nc6 {[%clk 0:01:17.3]} 24. Ne3 {[%clk 0:01:39.5]} 24... Be6 {[%clk
0:01:17.3]} 25. Ne4 {[%clk 0:01:36.8]} 25... Rae8 {[%clk 0:01:15.9]} 26. Rfe1
{[%clk 0:01:36.4]} 26... h6 {[%clk 0:00:59.9]} 27. Nd5 {[%clk 0:01:31.2]} 27...
Kh7 {[%clk 0:00:46]} 28. Nec3 {[%clk 0:01:04.1]} 28... Nd4 {[%clk 0:00:36.6]}
29. Re4 {[%clk 0:01:02.8]} 29... Bxd5 {[%clk 0:00:31.2]} 30. cxd5 {[%clk
0:00:56.9]} 30... Rxe4 {[%clk 0:00:29.1]} 31. fxe4 {[%clk 0:00:54.1]} 31... Qf6
{[%clk 0:00:25.4]} 32. Re1 {[%clk 0:00:48.6]} 32... Kg7 {[%clk 0:00:21.5]} 33.
h3 {[%clk 0:00:47.1]} 33... h5 {[%clk 0:00:21.2]} 34. Nd1 {[%clk 0:00:44.2]}
34... Qe5 {[%clk 0:00:18.7]} 35. Re3 {[%clk 0:00:41.4]} 35... h4 {[%clk
0:00:13.7]} 36. Nf2 {[%clk 0:00:39.9]} 36... Qg5 {[%clk 0:00:13.7]} 37. Ng4
{[%clk 0:00:38]} 37... Rf3 {[%clk 0:00:11.7]} 38. Qe1 {[%clk 0:00:28.8]} 38...
Rxe3 {[%clk 0:00:11.2]} 39. Qxe3 {[%clk 0:00:24.7]} 39... Qxe3+ {[%clk
0:00:11.2]} 40. Nxe3 {[%clk 0:00:24.7]} 40... Kf6 {[%clk 0:00:11.7]} 41. Nc4
{[%clk 0:00:17.3]} 41... Ne2+ {[%clk 0:00:09.4]} 42. Kf2 {[%clk 0:00:16.7]}
42... Nc3 {[%clk 0:00:09.9]} 43. Ke3 {[%clk 0:00:16.2]} 43... Nxa2 {[%clk
0:00:09.8]} 44. Kd2 {[%clk 0:00:11.5]} 44... Nb4 {[%clk 0:00:09.3]} 45. Kc3
{[%clk 0:00:11.6]} 45... Kg5 {[%clk 0:00:09.3]} 46. Ne3 {[%clk 0:00:08.5]} 46...
Kf4 {[%clk 0:00:09]} 47. Ng4 {[%clk 0:00:08.5]} 47... Kxe4 {[%clk 0:00:08.7]}
48. Kc4 {[%clk 0:00:09]} 48... Nxd5 {[%clk 0:00:06.2]} 49. Nf2+ {[%clk
0:00:09.1]} 49... Ke5 {[%clk 0:00:06.6]} 50. Ng4+ {[%clk 0:00:08.8]} 50... Ke6
{[%clk 0:00:07]} 51. Nf2 {[%clk 0:00:08.8]} 51... Nf4 {[%clk 0:00:07.3]} 0-1

[Event "*** Titled Tuesday Blitz"]
[Site "Chess.com"]
[Date "2020.04.28"]
[Round "8"]
[White "jucAxx"]
[Black "talaicito"]
[Result "1/2-1/2"]
[WhiteElo "2113"]
[BlackElo "2270"]
[TimeControl "180+1"]
[EndTime "11:36:23 PDT"]
[Termination "Game drawn by stalemate"]

1. e4 {[%clk 0:03:00.9]} 1... e6 {[%clk 0:03:00.2]} 2. Nf3 {[%clk 0:03:00.7]}
2... d5 {[%clk 0:02:59.8]} 3. e5 {[%clk 0:03:00.4]} 3... c5 {[%clk 0:02:59.6]}
4. b4 {[%clk 0:02:58.4]} 4... b6 {[%clk 0:02:58.2]} 5. bxc5 {[%clk 0:02:56.4]}
5... bxc5 {[%clk 0:02:57.2]} 6. d4 {[%clk 0:02:57]} 6... Nc6 {[%clk 0:02:52.3]}
7. c3 {[%clk 0:02:56.1]} 7... Qb6 {[%clk 0:02:37.6]} 8. Bd3 {[%clk 0:02:51]}
8... Ba6 {[%clk 0:02:33.2]} 9. O-O {[%clk 0:02:41.4]} 9... Bxd3 {[%clk
0:02:20.9]} 10. Qxd3 {[%clk 0:02:41]} 10... Nge7 {[%clk 0:02:10.7]} 11. Bg5
{[%clk 0:02:35]} 11... Nf5 {[%clk 0:02:05.4]} 12. g4 {[%clk 0:02:31.3]} 12... c4
{[%clk 0:01:51.2]} 13. Qd1 {[%clk 0:02:26.7]} 13... Nfe7 {[%clk 0:01:50.8]} 14.
Nbd2 {[%clk 0:02:21.6]} 14... h6 {[%clk 0:01:50.5]} 15. Bh4 {[%clk 0:02:19.1]}
15... Ng6 {[%clk 0:01:47.6]} 16. Bg3 {[%clk 0:02:15.3]} 16... Qa5 {[%clk
0:01:30.3]} 17. Qc2 {[%clk 0:02:05.6]} 17... Ba3 {[%clk 0:01:27.7]} 18. Rab1
{[%clk 0:02:01.9]} 18... O-O {[%clk 0:01:26.1]} 19. h4 {[%clk 0:01:58.2]} 19...
Rab8 {[%clk 0:01:24.1]} 20. h5 {[%clk 0:01:57.6]} 20... Nge7 {[%clk 0:01:23]}
21. Nh4 {[%clk 0:01:55.2]} 21... Rxb1 {[%clk 0:01:14.2]} 22. Rxb1 {[%clk
0:01:53.5]} 22... Rb8 {[%clk 0:01:14]} 23. Rxb8+ {[%clk 0:01:52.2]} 23... Nxb8
{[%clk 0:01:14.5]} 24. f4 {[%clk 0:01:36.3]} 24... Qb6 {[%clk 0:01:14.5]} 25. f5
{[%clk 0:01:32.9]} 25... Qb2 {[%clk 0:01:13.1]} 26. Qxb2 {[%clk 0:01:30.5]}
26... Bxb2 {[%clk 0:01:13.2]} 27. Nb1 {[%clk 0:01:30.8]} 27... Nec6 {[%clk
0:01:08.8]} 28. fxe6 {[%clk 0:01:16.6]} 28... fxe6 {[%clk 0:01:08.3]} 29. Ng6
{[%clk 0:01:15.1]} 29... Na6 {[%clk 0:01:05.7]} 30. Bh4 {[%clk 0:01:10.8]} 30...
Kf7 {[%clk 0:01:04.3]} 31. Kf2 {[%clk 0:01:08.8]} 31... Nc7 {[%clk 0:01:03.5]}
32. Ke2 {[%clk 0:01:08.6]} 32... Nb5 {[%clk 0:01:03.6]} 33. Be1 {[%clk
0:01:07.3]} 33... Ncxd4+ {[%clk 0:01:00.2]} 34. cxd4 {[%clk 0:01:03.7]} 34...
Nxd4+ {[%clk 0:01:00.1]} 35. Kf2 {[%clk 0:00:56]} 35... Nc6 {[%clk 0:00:59.8]}
36. Bc3 {[%clk 0:00:54.5]} 36... Bc1 {[%clk 0:00:57]} 37. Bd2 {[%clk 0:00:54.4]}
37... Bxd2 {[%clk 0:00:54.3]} 38. Nxd2 {[%clk 0:00:54.7]} 38... c3 {[%clk
0:00:55]} 39. Nb3 {[%clk 0:00:55.1]} 39... a5 {[%clk 0:00:55.1]} 40. Ke2 {[%clk
0:00:54.7]} 40... a4 {[%clk 0:00:54.6]} 41. Nc1 {[%clk 0:00:55]} 41... d4 {[%clk
0:00:50.3]} 42. Kd3 {[%clk 0:00:54.6]} 42... Ke8 {[%clk 0:00:46.5]} 43. Kc4
{[%clk 0:00:50.8]} 43... Kd7 {[%clk 0:00:45.9]} 44. Kc5 {[%clk 0:00:50.8]} 44...
Kc7 {[%clk 0:00:31.7]} 45. a3 {[%clk 0:00:45.2]} 45... Kd7 {[%clk 0:00:24.8]}
46. Nd3 {[%clk 0:00:39.8]} 46... c2 {[%clk 0:00:18.4]} 47. Nc1 {[%clk
0:00:37.3]} 47... Kc7 {[%clk 0:00:17.1]} 48. Nd3 {[%clk 0:00:34]} 48... Na5
{[%clk 0:00:16.6]} 49. Kxd4 {[%clk 0:00:32.5]} 49... Nb3+ {[%clk 0:00:16.8]} 50.
Kc4 {[%clk 0:00:25.7]} 50... c1=Q+ {[%clk 0:00:17.7]} 51. Nxc1 {[%clk
0:00:25.9]} 51... Nxc1 {[%clk 0:00:18.6]} 52. Kb4 {[%clk 0:00:26.4]} 52... Nd3+
{[%clk 0:00:16.6]} 53. Kxa4 {[%clk 0:00:26.8]} 53... Nf2 {[%clk 0:00:17.5]} 54.
Nf8 {[%clk 0:00:24.7]} 54... Nxg4 {[%clk 0:00:15.1]} 55. Nxe6+ {[%clk
0:00:24.8]} 55... Kb6 {[%clk 0:00:14.3]} 56. Nxg7 {[%clk 0:00:25.7]} 56... Nxe5
{[%clk 0:00:14.2]} 57. Nf5 {[%clk 0:00:25.9]} 57... Nf7 {[%clk 0:00:13.5]} 58.
Kb4 {[%clk 0:00:25.4]} 58... Ka6 {[%clk 0:00:13.5]} 59. a4 {[%clk 0:00:26]}
59... Kb6 {[%clk 0:00:13.9]} 60. a5+ {[%clk 0:00:26.5]} 60... Ka6 {[%clk
0:00:14.6]} 61. Ka4 {[%clk 0:00:25.9]} 61... Kb7 {[%clk 0:00:12.9]} 62. Kb5
{[%clk 0:00:26.2]} 62... Ka7 {[%clk 0:00:13.6]} 63. a6 {[%clk 0:00:26.5]} 63...
Kb8 {[%clk 0:00:13.7]} 64. Kb6 {[%clk 0:00:26.5]} 64... Ka8 {[%clk 0:00:13.9]}
65. a7 {[%clk 0:00:24.5]} 65... Nd6 {[%clk 0:00:13.9]} 66. Nxd6 {[%clk
0:00:20.7]} 1/2-1/2